[Event "Italian-ch Teams-B 2022"]
[Site "Montesilvano"]
[Date "2022.04.23"]
[Round "7.2"]
[White "Shytaj, Luca"]
[Black "Loiacono, Leonardo"]
[Result "1/2-1/2"]
[ECO "C41"]
[WhiteElo "2460"]
[BlackElo "2284"]
[Annotator "TA"]
[PlyCount "139"]
[EventDate "2022.04.19"]
[EventType "team-tourn"]
[EventCountry "ITA"]
[SourceTitle "playchess.com"]
[Source "ChessBase"]
[SourceQuality "1"]
[TimeControl "40/5400+30:1800+30"]

{[%evp 15,139,24,39,41,39,25,37,9,12,14,4,15,35,13,30,36,29,-307,-308,-347,-310,-321,-321,-352,-358,-348,-360,-354,-333,-329,-322,-433,-200,-191,-188,-187,-160,-160,-160,-167,-167,-167,-167,-170,-170,-141,-141,-136,-50,-231,-231,-232,-85,-85,-85,-96,-123,-232,-123,-290,-258,-259,-223,-477,-415,-1564,-1533,-4182,-2783,-1537,-5129,-5416,-5416,-3345,-1517,-1499,-1491,-1468,-1457,-1289,-1334,-1254,-1254,-1229,0,0,0,0,0,0,0,0,0,0,0,0,0,0,0,0,0,0,0,0,0,0,0,0,0,0,0,0,0,0,0,0,0,0,0,0,0,0,0,0,0,0]} 1. e4 {[%emt 0:00:05]} e5 {[%emt 0:02:05]} 2. Nc3 {[%emt 0:01:12]} Nf6 {[%emt 0:00:17]} 3. d4 {[%emt 0:01:00]} d6 {[%emt 0:05:08]} 4. Nf3 {[%emt 0:02:40]} Nbd7 {[%emt 0:00:06]} 5. Bc4 {[%emt 0:00:53]} Be7 {[%emt 0:00:20]} 6. O-O {[%emt 0:00:54]} O-O {[%emt 0:00:04]} 7. a4 $1 {[%emt 0:01:53][%mdl 4] now scores much better than the old 7.Re1.} c6 {[%emt 0:02:12]} 8. Ba2 {[%emt 0:07:25]} b6 {[%emt 0:03:25]} 9. h3 {[%emt 0:05:55] C41: Philidor Defence.} Bb7 {[%emt 0:00:33] [#]} 10. Qd3 $146 {[%emt 0:06:26]} ({Predecessor:} 10. Re1 Qc7 11. Nh4 Rfe8 12. Nf5 Bf8 13. dxe5 dxe5 14. Qf3 Rad8 15. Bg5 g6 16. Ne3 Be7 17. Ng4 Nxg4 18. Qxf7+ Kh8 19. Bxe7 Rf8 20. Bxf8 Rxf8 21. Qe7 Ngf6 22. Rad1 Re8 23. Qd6 Qd8 {1-0 (23) Fedorchuk,S (2618)-Moussard,J (2426) Paris 2011}) 10... a6 {[%emt 0:05:53]} 11. Rd1 {[%emt 0:14:59] White is slightly better.} b5 $1 {[%emt 0:04:12]} 12. axb5 {[%emt 0:03:04]} axb5 {[%emt 0:00:06]} 13. b4 {[%emt 0:00:15]} exd4 {[%emt 0:07:18]} 14. Nxd4 {[%emt 0:06:52] With the idea Nf5.} c5 {[%emt 0:01:18][%cal Bc6c5,Bc5b4,Bb4c3][%mdl 32]} 15. Nf5 {[%emt 0:10:21]} cxb4 {[%emt 0:02:48] [#]} 16. Bh6 $2 {[%emt 0:04:36][%mdl 8192]} bxc3 $19 {[%emt 0:02:01]} 17. Bxg7 {[%emt 0:03:50]} Bxe4 {[%emt 0:01:26]} 18. Bxf6 {[%emt 0:00:35][%cal Rf5h6]} Bxf5 {[%emt 0:00:11]} 19. Qg3+ {[%emt 0:05:54]} Bg6 {[%emt 0:00:38]} 20. Bxc3 {[%emt 0:00:07]} Bf6 {[%emt 0:17:50]} 21. Rxd6 {[%emt 0:02:07] Threatens to win with Bxf6.} Bxc3 {[%emt 0:00:09]} 22. Qxc3 {[%emt 0:00:20]} Qe7 {[%emt 0:05:07]} 23. Qc7 {[%emt 0:06:57] [#]} Rfc8 {[%emt 0:02:52]} 24. Qxd7 {[%emt 0:00:44]} Qxd7 {[%emt 0:00:05]} 25. Rxd7 {[%emt 0:00:05]} Ra4 {[%emt 0:00:36]} 26. f4 {[%emt 0:02:40][%cal Of4f5]} Rxc2 {[%emt 0:03:33]} 27. f5 {[%emt 0:00:14]} Raxa2 {[%emt 0:01:02]} (27... Rcxa2 28. Rxa2 Rxa2 29. fxg6 $17) (27... Bxf5 28. Bxf7+ Kf8 29. Rf1 Bxd7 30. Bb3+ Kg7 31. Bxc2 $11) 28. Rxa2 {[%emt 0:00:12]} Rxa2 {[%emt 0:00:05]} 29. fxg6 {[%emt 0:00:11]} hxg6 {[%emt 0:00:11][%mdl 4096] Endgame KR-KR} ({Stronger than} 29... fxg6 30. Rb7 $15) 30. Rb7 {[%emt 0:00:35]} Rb2 {[%emt 0:00:05]} 31. Kh2 {[%emt 0:00:57] [#]} Kg7 {[%emt 0:05:57]} ({Better is} 31... b4 $1 $17 32. Kg3 b3) 32. Rb6 $2 {[%emt 0:01:23]} (32. h4 $15) 32... g5 {[%emt 0:01:37]} 33. Kg3 {[%emt 0:01:42]} f6 {[%emt 0:00:56]} (33... f5 $19 {and Black stays clearly on top. And now ...b4 would win.} 34. Kf3 Rb3+ 35. Kf2 f4 36. Rb7+ Kf6) 34. Kf3 $17 {[%emt 0:01:08]} Rb3+ {[%emt 0:01:01]} 35. Kf2 {[%emt 0:00:42]} Kf7 {[%emt 0:04:31]} 36. Ke2 {[%emt 0:00:29]} (36. g3 $17) 36... Kg6 {[%emt 0:02:06]} (36... f5 $19 37. Kf2 f4) 37. Kf2 $2 {[%emt 0:01:19]} (37. g4 $17) 37... Kf5 $19 {[%emt 0:00:23]} 38. Rc6 {[%emt 0:04:08]} Ke5 {[%emt 0:01:20] Hoping for ...b4.} 39. Rc5+ $2 {[%emt 0:01:10]} (39. Rb6 {was worth a try.}) 39... Ke4 {[%emt 0:01:57]} 40. h4 {[%emt 0:02:42]} (40. Rc8 $142 b4 41. Re8+ Kd4 42. Rd8+ Ke4 43. Re8+ Kf4 44. Rf8) 40... gxh4 {[%emt 0:03:12]} 41. Rh5 {[%emt 0:30:07]} f5 {[%emt 0:35:24] ...b4 is the strong threat.} ({Avoid the trap} 41... Rb2+ $2 42. Kg1 $19) 42. Rxh4+ {[%emt 0:00:06]} f4 {[%emt 0:00:05]} 43. Rh8 {[%emt 0:00:41]} Rb2+ {[%emt 0:00:11]} 44. Kg1 {[%emt 0:00:00]} Rc2 {[%emt 0:00:00]} (44... b4 $142 45. Re8+ Kd3 46. Rd8+ Ke3 47. Re8+ Kd3 48. Rd8+ Ke4 49. Re8+ Kd3) 45. Rb8 {[%emt 0:00:00]} Rc5 {[%emt 0:00:00]} 46. Kf2 {[%emt 0:00:00]} Rf5 {[%emt 0:00:00]} 47. Rd8 {[%emt 0:00:00]} Rd5 {[%emt 0:00:00]} 48. Rb8 {[%emt 0:00:00]} Rc5 {[%emt 0:00:52]} 49. Rb7 {[%emt 0:00:00]} Kd5 $2 {[%emt 0:03:49]} (49... Rc2+ $19 50. Kf1 Ke3 51. Re7+ Kd3) 50. Kf3 $11 {[%emt 0:00:00] The position is equal.} Kc6 {[%emt 0:00:24]} 51. Rf7 {[%emt 0:00:00]} b4 {[%emt 0:00:28]} 52. Rxf4 {[%emt 0:00:00]} Kb5 {[%emt 0:01:11]} 53. Rf8 {[%emt 0:00:00]} Kc4 {[%emt 0:02:37] White must now prevent ...b3.} 54. g4 {[%emt 0:00:26]} b3 {[%emt 0:00:28]} 55. Rb8 {[%emt 0:00:45]} Rb5 {[%emt 0:00:53]} 56. Rc8+ {[%emt 0:00:10]} Kd3 {[%emt 0:00:30]} 57. Rd8+ {[%emt 0:01:40]} Kc2 {[%emt 0:00:31] ( -> ...b2)} 58. Rc8+ $1 {[%emt 0:00:07]} Kb1 {[%emt 0:02:03]} 59. Kf4 {[%emt 0:00:41]} b2 {[%emt 0:00:46]} 60. g5 {[%emt 0:00:21][%cal Bg4g5,Bg5g6,Bg6g7][%mdl 32]} Ka2 {[%emt 0:01:57]} 61. Rc2 {[%emt 0:00:15]} Ka3 {[%emt 0:01:37]} 62. Rxb2 $1 {[%emt 0:00:06]} Rxb2 {[%emt 0:00:05] KR-KP} 63. g6 {[%emt 0:00:51]} Kb4 {[%emt 0:00:26]} 64. Kf5 {[%emt 0:00:26]} Kc5 {[%emt 0:00:38]} 65. g7 {[%emt 0:00:23]} Rg2 {[%emt 0:00:26]} 66. Kf6 {[%emt 0:00:06]} Kd6 {[%emt 0:00:06]} 67. Kf7 {[%emt 0:00:06]} Rf2+ {[%emt 0:00:05]} 68. Ke8 {[%emt 0:00:34]} Rg2 {[%emt 0:00:06]} 69. Kf7 {[%emt 0:00:05]} Rxg7+ {[%emt 0:00:05]} 70. Kxg7 {[%emt 0:00:04] Black had all chances to win.  Weighted Error Value: White=0.59/Black=0.28 (precise)} 1/2-1/2

[Event "Italian-ch Teams-B 2022"]
[Site "Montesilvano"]
[Date "2022.04.23"]
[Round "7.2"]
[White "Paltrinieri, Nicholas"]
[Black "Carnicelli, Valerio"]
[Result "1/2-1/2"]
[ECO "A03"]
[WhiteElo "2344"]
[BlackElo "2293"]
[Annotator "TA"]
[PlyCount "120"]
[EventDate "2022.04.19"]
[EventType "team-tourn"]
[EventCountry "ITA"]
[SourceTitle "playchess.com"]
[Source "ChessBase"]
[SourceQuality "1"]
[TimeControl "40/5400+30:1800+30"]

{[%evp 11,120,0,10,4,50,52,66,65,60,58,89,77,78,74,86,79,81,82,82,83,100,40,42,30,51,56,80,17,18,-16,0,-16,0,-14,-20,-27,0,-12,0,-1,18,-15,13,-24,-16,-100,-100,-99,-100,-101,-86,-116,-60,-152,-136,-172,-175,-300,-72,-129,-129,-128,-89,-127,-108,-159,-115,-144,-127,-172,-73,-75,-58,-69,-68,-124,-117,-121,-122,-291,-283,-275,-234,-283,-88,-100,-38,-335,-314,-346,-315,-309,0,0,0,-333,0,0,0,0,0,0,0,0,0,-494,0,0,0,0,0]} 1. f4 {[%emt 0:00:03]} d5 {[%emt 0:02:45]} 2. Nf3 {[%emt 0:00:02]} Nf6 {[%emt 0:00:05]} 3. g3 {[%emt 0:01:32]} g6 {[%emt 0:00:05]} 4. Bg2 {[%emt 0:00:05]} Bg7 {[%emt 0:00:05]} 5. d3 {[%emt 0:00:06][%cal Bd2d3,Bd3d4][%mdl 32]} O-O {[%emt 0:00:05]} 6. O-O {[%emt 0:00:05]} b6 {[%emt 0:00:09]} 7. e4 {[%emt 0:02:22] A03: Bird's Opening with 1...d5.} Bb7 {[%emt 0:14:40]} (7... dxe4 $11 8. dxe4 Nxe4) 8. e5 $14 {[%emt 0:02:18]} Ne8 {[%emt 0:02:40]} 9. d4 {[%emt 0:01:12] [#] White is slightly better.} e6 $146 {[%emt 0:01:01]} ({Predecessor:} 9... f6 10. Nc3 e6 11. exf6 Qxf6 12. Ne5 Nd6 13. a4 Nf5 14. Nb5 Qe7 15. b3 a6 {0-1 (45) Moeller,H-Zajontz,R GER corr 1990}) 10. Be3 {[%emt 0:01:18]} Nc6 {[%emt 0:01:23]} 11. c3 {[%emt 0:08:12]} Ne7 {[%emt 0:00:44]} 12. g4 {[%emt 0:02:00]} Qd7 {[%emt 0:01:07]} 13. Nbd2 {[%emt 0:01:37]} a5 {[%emt 0:01:51]} 14. Rf2 {[%emt 0:06:16]} Ba6 {[%emt 0:01:28]} 15. Nf1 {[%emt 0:04:52]} f5 {[%emt 0:09:46]} 16. exf6 {[%emt 0:04:14]} (16. g5) (16. g5 $16) 16... Nxf6 {[%emt 0:02:25]} 17. Ne5 {[%emt 0:00:08]} Qd6 {[%emt 0:00:29]} 18. Ng3 {[%emt 0:00:19]} Nd7 {[%emt 0:01:37][%cal Rd7e5]} 19. Nxd7 {[%emt 0:08:26] White is more active.} (19. h4) (19. h4 $16) 19... Qxd7 $11 {[%emt 0:00:26]} 20. h3 {[%emt 0:05:11]} Rae8 {[%emt 0:00:54]} 21. Qc2 {[%emt 0:00:40]} Nc8 {[%emt 0:00:47]} 22. Rd1 {[%emt 0:01:51]} Nd6 {[%emt 0:01:03]} 23. b3 {[%emt 0:00:27]} Kh8 {[%emt 0:01:21]} 24. Kh2 {[%emt 0:03:21]} Qc8 {[%emt 0:02:55]} 25. Qc1 {[%emt 0:01:19]} Qd8 {[%emt 0:05:24][%cal Oa5a4]} 26. Bf3 {[%emt 0:01:02]} Re7 {[%emt 0:08:21]} 27. Kg2 {[%emt 0:02:19]} Ref7 {[%emt 0:01:29]} 28. h4 {[%emt 0:03:54]} (28. Re1 $11 {remains equal.}) 28... Qxh4 $17 {[%emt 0:18:05][%cal Od6e4]} 29. Rh1 {[%emt 0:21:01]} Qe7 {[%emt 0:00:41]} 30. Kg1 {[%emt 0:00:05]} Kg8 {[%emt 0:00:23][%cal Oc7c5]} 31. Rfh2 {[%emt 0:00:43]} Bh8 {[%emt 0:00:16]} (31... Bf6 $17 {[%cal Oc7c5]} 32. Bg2 Qd7) 32. Bd1 {[%emt 0:01:22]} (32. Qc2 $15 g5 33. Bg2 gxf4 34. Bxf4) 32... Bd3 {[%emt 0:02:25]} 33. Bc2 {[%emt 0:00:06]} Bxc2 {[%emt 0:00:23]} 34. Qxc2 {[%emt 0:00:02]} (34. Rxc2 $142 c5 35. Qd2) 34... Rg7 $2 {[%emt 0:02:52]} (34... e5 $1 $19 {[%cal Re5f4] has better winning chances.} 35. dxe5 Bxe5 $1 {[%mdl 512]}) 35. Rh6 {[%emt 0:00:46]} (35. Rxh7 $2 Rxh7 36. Qxg6+ Qg7 37. Qxe6+ Qf7 38. Qxf7+ Rfxf7 $19) (35. a4 $142) 35... a4 {[%emt 0:02:35]} 36. Kg2 {[%emt 0:00:54]} (36. Rxh7 $2 Rxh7 37. Qxg6+ Qg7 38. Qxe6+ Qf7 39. Qxf7+ Rhxf7 $19) 36... Ra8 {[%emt 0:00:52]} 37. Bf2 {[%emt 0:06:08]} (37. Rxh7 $2 Rxh7 38. Qxg6+ Qg7 39. Qxe6+ Qf7 40. Qxf7+ Rxf7 $19) 37... Qe8 {[%emt 0:03:03]} 38. Nf1 {[%emt 0:01:09]} (38. b4 $142) 38... Ne4 {[%emt 0:00:50] White must now prevent ...axb3.} 39. Nd2 {[%emt 0:01:04]} axb3 {[%emt 0:05:12]} 40. axb3 {[%emt 0:00:06]} Nxd2 {[%emt 0:00:39]} (40... Nxf2 $19 {is more deadly.} 41. Kxf2 Qf7) 41. Qxd2 {[%emt 0:30:04]} c6 {[%emt 0:30:09]} 42. Qe3 {[%emt 0:03:22]} Ra2 {[%emt 0:05:40]} 43. Kf3 {[%emt 0:02:37]} ({Better is} 43. Re1 $15) 43... Rf7 {[%emt 0:01:00]} 44. Re1 {[%emt 0:02:00]} Bf6 {[%emt 0:00:00] Threatens to win with ...Bg5.} 45. f5 $2 {[%emt 0:00:00]} (45. Kg2 $17) 45... Qf8 $19 {[%emt 0:00:00]} (45... gxf5 46. g5 f4 47. Qxe6 Qxe6 48. Rxe6 Bxg5 49. Re8+ Rf8 50. Rxf8+ Kxf8 51. Rxc6 $11) (45... Bg7 $2 46. Rhh1 gxf5 47. g5 $19) 46. Rhh1 {[%emt 0:00:00]} exf5 {[%emt 0:00:00]} (46... gxf5 47. g5 e5 48. dxe5 $11 (48. gxf6 e4+ 49. Kg2 f4 $17)) 47. g5 {[%emt 0:00:00] [#]} Re7 $2 {[%emt 0:02:54]} 48. Qf4 $17 {[%emt 0:00:00] [#]} Re4 {[%emt 0:00:03]} (48... Bg7 $1 $17 {And now ...Re4 would win.} 49. Rxe7 Qxe7) 49. Qc7 $2 {[%emt 0:00:00][%mdl 8192] [#]} (49. Qh2 $15 Bg7 50. Qxh7+ Kf7 51. Bg3) 49... Qe7 $1 $19 {[%emt 0:00:09]} 50. Qb8+ {[%emt 0:02:50]} (50. Qc8+ Qd8) 50... Qd8 {[%emt 0:00:06]} 51. Qb7 {[%emt 0:00:14]} Qe7 {[%emt 0:00:19]} 52. Qc8+ $2 {[%emt 0:00:12][%mdl 8192]} (52. Qb8+ $11 {and White is okay.} Qd8 53. Qxd8+ Bxd8 54. Ra1) 52... Qd8 {[%emt 0:00:04]} 53. Qb7 {[%emt 0:00:51]} Re7 $2 {[%emt 0:01:23]} 54. Rxe7 $11 {[%emt 0:02:32] The board is on fire.} Bxe7 {[%emt 0:00:28]} (54... Qxe7 $2 55. Qc8+ Qf8 56. Qxf8+ Kxf8 57. gxf6 $18) 55. Bg3 $1 {[%emt 0:00:39]} f4 {[%emt 0:00:20]} 56. Bxf4 {[%emt 0:00:26]} Qf8 {[%emt 0:01:10] Strongly threatening ...h5.} 57. Kg3 {[%emt 0:02:12]} Re2 {[%emt 0:01:22]} 58. Qd7 $2 {[%emt 0:01:56][%mdl 8192] [#]} (58. Qxc6 $11 Qf7 59. Qc8+ (59. c4 $2 Bxg5 60. Kf3 Re4 $19) 59... Bf8 60. Rf1) 58... Qf5 $2 {[%emt 0:00:25]} (58... Re4 $1 $19 59. Rh4 h5) 59. Qxf5 {[%emt 0:00:34]} gxf5 {[%emt 0:00:02]} 60. Rh6 {[%emt 0:00:06]} Rb2 {[%emt 0:00:38] Weighted Error Value: White=0.42/Black=0.45} 1/2-1/2

[Event "Italian-ch Teams-B 2022"]
[Site "Montesilvano"]
[Date "2022.04.23"]
[Round "7.2"]
[White "Boraso, Alessio"]
[Black "Genocchio, Daniele"]
[Result "1/2-1/2"]
[ECO "C47"]
[WhiteElo "2286"]
[BlackElo "2358"]
[Annotator "TA"]
[PlyCount "120"]
[EventDate "2022.04.19"]
[EventType "team-tourn"]
[EventCountry "ITA"]
[SourceTitle "playchess.com"]
[Source "ChessBase"]
[SourceQuality "1"]
[TimeControl "40/5400+30:1800+30"]

{[%evp 9,120,10,10,25,21,19,28,17,9,0,-6,-33,-33,-34,-33,-37,16,0,20,12,9,13,12,20,17,18,14,16,23,-18,-15,-22,-18,-10,0,0,0,0,0,-20,-28,-32,-33,-38,-31,-54,-56,-93,-51,-40,-52,-80,-49,-49,-43,-56,-37,-411,-46,-74,0,-405,-43,-58,-30,-191,-25,-34,-44,-55,-54,-45,-17,-14,-28,-58,-31,-32,0,-39,-31,-35,-30,-33,-30,-177,-184,-167,-186,-181,-183,-168,-168,-175,-162,-176,-166,-165,-64,-76,-68,-145,-145,-162,-99,-396,-162,-157,-8,-8,0,0,0]} 1. e4 {[%emt 0:00:07]} e5 {[%emt 0:08:30]} 2. Nf3 {[%emt 0:00:39]} Nc6 {[%emt 0:00:07]} 3. Nc3 {[%emt 0:00:12]} Nf6 {[%emt 0:00:09]} 4. a3 {[%emt 0:00:09]} Be7 {[%emt 0:28:37]} 5. d4 {[%emt 0:03:06]} exd4 {[%emt 0:02:38]} 6. Nxd4 {[%emt 0:01:17] C47: Scotch Four Knights and Four Knights with 4 g3.} O-O {[%emt 0:01:48]} 7. Nxc6 {[%emt 0:01:24]} bxc6 {[%emt 0:00:05]} 8. e5 {[%emt 0:00:41] White has an edge.} Ne8 {[%emt 0:01:02]} 9. Bd3 {[%emt 0:00:17]} f6 {[%emt 0:10:00]} 10. Qh5 {[%emt 0:12:21]} g6 {[%emt 0:03:40]} 11. Qe2 {[%emt 0:20:17]} fxe5 {[%emt 0:00:06]} 12. Qxe5 {[%emt 0:03:03] [#] aiming for Bc4+.} Nf6 $146 {[%emt 0:10:06]} (12... d5 $15) ({Predecessor:} 12... Bf6 13. Qe2 d5 14. O-O Ng7 15. Na4 Qd6 16. c4 Bd7 17. Qc2 Be5 18. h3 Bd4 {½-½ (45) Lubbe,N (2451)-Papadopoulos,I (2415) Achaia 2013}) 13. Bg5 $36 {[%emt 0:12:10][%mdl 2048] White is more active.} Ng4 {[%emt 0:18:38][%csl LRe5,LRf2,LRg5]} 14. Bxe7 {[%emt 0:05:38]} ({Much weaker is} 14. Qxe7 Re8 15. O-O (15. Bc4+ Kh8 $17) 15... Rxe7 $17) 14... Nxe5 {[%emt 0:00:03]} 15. Bxd8 {[%emt 0:00:10]} Rxd8 {[%emt 0:00:25]} 16. Kd2 $1 {[%emt 0:01:42]} Rf8 {[%emt 0:00:18]} 17. f3 {[%emt 0:35:47]} a5 {[%emt 0:00:39]} 18. h4 {[%emt 0:00:00][%cal Bh2h4,Bh4h5][%mdl 32]} d6 {[%emt 0:03:03]} 19. h5 {[%emt 0:00:00]} g5 {[%emt 0:02:14]} 20. Raf1 {[%emt 0:00:00]} h6 {[%emt 0:00:35]} 21. Be2 {[%emt 0:00:00]} Bb7 {[%emt 0:07:28]} 22. Rf2 {[%emt 0:00:00]} Ng4 {[%emt 0:00:21]} 23. Rff1 {[%emt 0:00:00]} Ne5 {[%emt 0:00:01]} 24. Rhg1 {[%emt 0:00:00]} c5 {[%emt 0:00:43]} 25. Bb5 {[%emt 0:00:00]} Rab8 {[%emt 0:01:01]} 26. Rf2 {[%emt 0:00:00]} Kg7 {[%emt 0:00:17]} 27. Rgf1 {[%emt 0:00:00]} Rf4 {[%emt 0:00:16]} 28. Ke3 {[%emt 0:00:00]} Rf7 {[%emt 0:00:37]} 29. Be2 {[%emt 0:00:00]} Bc6 {[%emt 0:00:39]} 30. b3 {[%emt 0:00:00]} Re8 {[%emt 0:00:17]} 31. Kd2 {[%emt 0:00:00]} Ref8 {[%emt 0:00:10][%cal Oe5g4]} 32. Nd1 {[%emt 0:01:41]} Rf4 {[%emt 0:00:42]} 33. Ke3 $2 {[%emt 0:01:53][%mdl 8192]} (33. a4 $15) 33... Re8 $2 {[%emt 0:00:16]} (33... Rd4 $19 34. Bd3 a4) 34. Kd2 $15 {[%emt 0:00:02]} Ref8 $2 {[%emt 0:00:01][%mdl 8192]} (34... a4 $17 35. Ne3 Bd7) 35. Ke3 $19 {[%emt 0:00:07]} d5 $2 {[%emt 0:01:41]} (35... Rd4 $19 {[%cal Oe5g4] ( -> ...Ng4+!)} 36. Bd3 a4) 36. Kd2 $15 {[%emt 0:01:29]} d4 {[%emt 0:00:15]} 37. Bd3 $2 {[%emt 0:02:04]} (37. Re1 $11 {and White has nothing to worry.}) 37... a4 $2 {[%emt 0:00:14]} (37... Nxd3 $19 38. cxd3 Rb8) 38. Re1 {[%emt 0:01:59]} Nxd3 {[%emt 0:00:43]} 39. Kxd3 {[%emt 0:00:05]} axb3 {[%emt 0:00:34]} 40. cxb3 {[%emt 0:00:18]} Bb5+ {[%emt 0:00:36]} (40... Rb8 $5 {[%cal Rb8b3]} 41. Re7+ Kf6 42. Rxc7 Rxb3+ 43. Kc4 Ba4 $15) 41. Kd2 {[%emt 0:31:12]} g4 {[%emt 0:16:26]} 42. Re7+ {[%emt 0:00:00]} Kf6 $1 {[%emt 0:00:51]} 43. Re4 {[%emt 0:00:00]} Kg7 {[%emt 0:03:58] Strongly threatening ...g3.} (43... Kg5 $5 {[%cal Rg4g3]} 44. Re5+ Kh4 $15) 44. g3 {[%emt 0:00:00]} Rxf3 {[%emt 0:01:04]} 45. Rxg4+ {[%emt 0:00:00]} Kh7 {[%emt 0:01:44]} 46. Rxf3 {[%emt 0:00:00]} Rxf3 $11 {[%emt 0:00:01][%mdl 4096] Endgame KRB-KRN} 47. b4 {[%emt 0:01:51]} (47. a4 $1 $11 {and White stays safe.} Be8 48. Re4 Bxh5 49. Re7+ Kg6 50. Rxc7) 47... Rxa3 $19 {[%emt 0:05:14]} 48. bxc5 {[%emt 0:00:10]} Ra2+ {[%emt 0:00:06]} 49. Kc1 {[%emt 0:00:15] [#]} d3 {[%emt 0:00:53] White must now prevent ...d2+.} 50. Kb1 {[%emt 0:01:20]} Rc2 {[%emt 0:01:05]} 51. Rd4 {[%emt 0:00:41]} Rxc5 {[%emt 0:00:02]} 52. Nf2 {[%emt 0:00:21]} Rxh5 {[%emt 0:02:44] Hoping for ...c5.} 53. Nxd3 {[%emt 0:00:16]} Bxd3+ {[%emt 0:00:15]} (53... Rh3 $19 54. Rd5 c6 55. Rd7+ Kg8 56. Rd8+ Kf7 57. Ne5+ Ke6) 54. Rxd3 {[%emt 0:00:18] KR-KR} Rc5 {[%emt 0:00:23]} 55. Kb2 {[%emt 0:00:20]} (55. g4 $1 $15) 55... Kg6 $17 {[%emt 0:00:09]} 56. Kb3 {[%emt 0:00:21]} Kf5 {[%emt 0:02:16]} (56... h5 $19 {...c6 is the strong threat.} 57. Kb4 Rg5) 57. Rd7 $2 {[%emt 0:00:28][%mdl 8192]} (57. Rd4 $17) 57... h5 {[%emt 0:00:58]} (57... Kg4 $142 58. Rg7+ Rg5 59. Rxc7 h5) 58. Rg7 $19 {[%emt 0:00:31]} Ke4 {[%emt 0:00:43]} (58... c6 $17 {And now ...Re5 would win.} 59. Rg8 Kf6) 59. Kb4 {[%emt 0:00:23]} Rc1 {[%emt 0:00:08]} 60. Rg5 {[%emt 0:00:47]} Kf3 {[%emt 0:00:55] Weighted Error Value: White=0.40/Black=0.49} 1/2-1/2

[Event "Italian-ch Teams-B 2022"]
[Site "Montesilvano"]
[Date "2022.04.23"]
[Round "7.3"]
[White "Bernadskiy, Vitaliy"]
[Black "D'Amore, Carlo"]
[Result "1-0"]
[ECO "A28"]
[WhiteElo "2615"]
[BlackElo "2406"]
[Annotator "TA"]
[PlyCount "87"]
[EventDate "2022.04.19"]
[EventType "team-tourn"]
[EventCountry "ITA"]
[SourceTitle "playchess.com"]
[Source "ChessBase"]
[SourceQuality "1"]
[TimeControl "40/5400+30:1800+30"]

{[%evp 10,87,-26,-27,-20,-16,-13,-15,29,38,32,34,37,38,46,28,102,40,31,36,47,42,44,18,91,87,72,75,197,191,301,300,393,364,376,375,393,406,464,449,441,431,487,518,497,497,466,461,720,686,642,410,352,220,272,253,257,137,335,354,345,349,919,919,917,900,919,908,893,889,1019,1019,1019,977,1546,1475,1320,1255,1097,1017]} 1. c4 {[%emt 0:15:45]} e5 {[%emt 0:00:33]} 2. Nc3 {[%emt 0:01:08]} Nf6 {[%emt 0:02:07]} 3. Nf3 {[%emt 0:00:29][%cal Bg1f3,Bf3d4,Bd4f5][%mdl 32]} Nc6 {[%emt 0:00:30]} 4. a3 {[%emt 0:00:43]} g6 {[%emt 0:00:47]} 5. d4 {[%emt 0:02:58]} exd4 {[%emt 0:01:57]} 6. Nxd4 {[%emt 0:00:05]} Bg7 {[%emt 0:00:08] A28: English Opening: Four Knights Variation.} 7. Bg5 {[%emt 0:00:11][%cal Oc3e4,Bc1g5,Bg5h4,Bh4g3][%mdl 32]} h6 {[%emt 0:00:30]} 8. Bh4 {[%emt 0:00:15] [#]} g5 $146 {[%emt 0:01:15] [#] The position is equal.} ({Predecessor:} 8... O-O 9. e3 Nxd4 10. Qxd4 g5 11. Bg3 d5 12. O-O-O Be6 13. Qc5 c6 14. cxd5 cxd5 {½-½ (56) Pantsulaia,L (2606)-Chibukhchian,A (2446) Yerevan 2014}) 9. Nf5 {[%emt 0:03:09]} Bf8 {[%emt 0:03:28] ...d6 is the strong threat.} 10. Bg3 {[%emt 0:00:30]} d6 {[%emt 0:00:05]} 11. Qc2 {[%emt 0:02:19]} Nh5 {[%emt 0:00:56]} 12. e3 {[%emt 0:03:29]} Nxg3 {[%emt 0:00:48]} (12... Bxf5 $11 13. Qxf5 Bg7) 13. hxg3 {[%emt 0:03:22]} (13. Nxg3 $16 Bg7 14. Nh5) 13... Bxf5 $14 {[%emt 0:02:18]} 14. Qxf5 {[%emt 0:00:06]} Bg7 {[%emt 0:00:05]} 15. Qc2 {[%emt 0:02:20]} Qd7 {[%emt 0:06:07]} 16. Bd3 {[%emt 0:05:17]} Ne5 {[%emt 0:00:56]} (16... Bxc3+ $11 17. Qxc3 O-O-O) 17. Bf5 $16 {[%emt 0:00:37]} Qc6 {[%emt 0:04:21]} 18. b3 {[%emt 0:01:32]} d5 {[%emt 0:07:57]} (18... Kf8 $16 {was necessary.}) 19. Nxd5 $18 {[%emt 0:01:30]} Qd6 {[%emt 0:08:58]} (19... Rd8 $142 20. Rc1 Qd6) 20. Rd1 {[%emt 0:03:25]} Kf8 {[%emt 0:02:05]} 21. c5 {[%emt 0:01:52]} Qa6 {[%emt 0:00:09]} 22. f4 {[%emt 0:00:33]} gxf4 {[%emt 0:00:29]} 23. gxf4 {[%emt 0:00:16]} Nc6 {[%emt 0:01:54]} 24. Kf2 {[%emt 0:01:16] Active counter play!} Qxa3 {[%emt 0:00:50]} 25. Nxc7 {[%emt 0:00:09]} Rd8 {[%emt 0:00:52]} 26. Rxd8+ {[%emt 0:01:58]} Nxd8 {[%emt 0:00:04]} 27. Qe4 {[%emt 0:05:12][%csl Gc7][%cal Re4e8] [#]} Bf6 {[%emt 0:07:56]} 28. Nd5 {[%emt 0:00:40] aiming for Kf3.} Kg7 {[%emt 0:02:12]} (28... Nc6 $142 29. Bd7 h5) 29. Rh3 {[%emt 0:03:01]} h5 {[%emt 0:00:22]} 30. Kf3 {[%emt 0:02:11]} Qa1 {[%emt 0:00:17]} 31. Kg3 {[%emt 0:03:59]} Nc6 {[%emt 0:03:42]} 32. Kh2 {[%emt 0:00:15] Really sharp!} h4 {[%emt 0:03:15] Prevents Rg3+.} 33. Qf3 {[%emt 0:05:06]} (33. b4 $18) 33... Kf8 $2 {[%emt 0:02:16] This costs Black the game.} (33... Bc3 $16) 34. Bc8 {[%emt 0:01:37][%cal Bf5c8,Bc8b7,Bb7c6][%mdl 32]} Bd8 {[%emt 0:04:10]} 35. Bxb7 {[%emt 0:03:14]} Ba5 $2 {[%emt 0:01:32]} (35... Ne7 36. Nxe7 Bxe7) 36. Bxc6 {[%emt 0:00:31] White is clearly winning.} Be1 {[%emt 0:01:22]} 37. Qf1 {[%emt 0:00:08]} Bg3+ {[%emt 0:02:39]} 38. Kg1 $1 {[%emt 0:00:05]} Qa3 {[%emt 0:00:51]} 39. b4 {[%emt 0:01:28]} a5 {[%emt 0:00:07]} 40. bxa5 {[%emt 0:01:06]} Qxa5 {[%emt 0:07:07]} 41. Qc1 {[%emt 0:31:52]} Rh6 {[%emt 0:30:38]} 42. Bb7 {[%emt 0:00:39]} Rh5 {[%emt 0:06:06]} 43. Nf6 {[%emt 0:00:37]} Rf5 {[%emt 0:04:56]} 44. Ne4 {[%emt 0:01:18] Weighted Error Value: White=0.23 (precise) /Black=0.40} 1-0